[Event "CCT Julius Baer-D3 2024"]
[Site "Online"]
[Date "2024.09.28"]
[Round "3"]
[White "Bharath Subramaniyam H"]
[Black "Caruana, Fabiano"]
[Result "1/2-1/2"]
[ECO "B33"]
[WhiteElo "2561"]
[BlackElo "2798"]
[Annotator "ChessBase"]
[PlyCount "202"]
[EventDate "2024.09.25"]
[EventType "swiss"]
[EventCountry "NET"]
[SourceTitle "playchess.com"]
[Source "ChessBase"]
[SourceQuality "1"]
[TimeControl "600+2"]

1. e4 {[%emt 0:00:06]} c5 {[%emt 0:00:04]} 2. Nf3 {[%emt 0:00:01]} Nc6 {[%emt 0:00:01]} 3. d4 {[%emt 0:00:01]} cxd4 {[%emt 0:00:01]} 4. Nxd4 {[%emt 0:00:00]} Nf6 {[%emt 0:00:00]} 5. Nc3 {[%emt 0:00:01]} e5 {[%emt 0:00:01]} 6. Ndb5 {[%emt 0:00:01]} d6 {[%emt 0:00:01]} 7. Bg5 {[%emt 0:00:01]} a6 {[%emt 0:00:01]} 8. Na3 {[%emt 0:00:00]} b5 {[%emt 0:00:01]} 9. Nab1 {[%emt 0:00:00]} Be7 {[%emt 0:00:05]} 10. Bxf6 {[%emt 0:00:02]} Bxf6 {[%emt 0:00:01]} 11. a4 {[%emt 0:00:01]} b4 {[%emt 0:00:01]} 12. Nd5 {[%emt 0:00:01]} O-O {[%emt 0:00:06]} 13. Bc4 {[%emt 0:00:01]} Bg5 {[%emt 0:00:02]} 14. O-O {[%emt 0:00:01]} Be6 {[%emt 0:00:06]} 15. Qd3 {[%emt 0:00:02]} a5 {[%emt 0:00:10]} 16. c3 {[%emt 0:00:26]} Rc8 {[%emt 0:00:06]} 17. Ba6 {[%emt 0:01:23]} bxc3 {[%emt 0:00:01]} 18. Nbxc3 {[%emt 0:01:01]} Rb8 {[%emt 0:00:04]} 19. Bb5 {[%emt 0:00:05]} Nd4 {[%emt 0:00:09]} 20. Rfd1 {[%emt 0:01:52]} f5 {[%emt 0:00:14]} 21. exf5 {[%emt 0:01:27]} Bxf5 {[%emt 0:00:21]} 22. Ne4 {[%emt 0:00:18]} Kh8 {[%emt 0:00:26]} 23. Re1 {[%emt 0:00:20]} Bh6 {[%emt 0:00:05]} 24. Rad1 {[%emt 0:00:07]} Bg6 {[%emt 0:02:08]} 25. b3 {[%emt 0:01:11]} Rb7 {[%emt 0:01:18]} 26. Bc4 {[%emt 0:00:06]} Rbf7 {[%emt 0:00:01]} 27. Qg3 {[%emt 0:00:32]} Bf4 {[%emt 0:01:18]} 28. Qh3 {[%emt 0:00:08]} Bf5 {[%emt 0:00:04]} 29. Qc3 {[%emt 0:00:16]} Bxh2+ {[%emt 0:00:44]} 30. Kxh2 {[%emt 0:00:27]} Qh4+ {[%emt 0:00:01]} 31. Kg1 {[%emt 0:00:00]} Bxe4 {[%emt 0:00:01]} 32. Qg3 {[%emt 0:00:01]} Qxg3 {[%emt 0:00:31]} 33. fxg3 {[%emt 0:00:00]} Bg6 {[%emt 0:00:18]} 34. Nc3 {[%emt 0:00:34]} Rf2 {[%emt 0:01:25]} 35. Nb5 {[%emt 0:00:09]} Bc2 {[%emt 0:00:01]} 36. Rc1 {[%emt 0:00:11]} Rd2 {[%emt 0:00:48]} 37. Nxd6 {[%emt 0:00:02]} g6 {[%emt 0:00:04]} 38. Rxe5 {[%emt 0:00:08]} Rff2 {[%emt 0:00:01]} 39. Bd5 {[%emt 0:00:05]} Rfe2 {[%emt 0:00:15]} 40. Re1 {[%emt 0:00:06]} Rxe1+ {[%emt 0:00:03]} 41. Rxe1 {[%emt 0:00:00]} Ne2+ {[%emt 0:00:02]} 42. Kh2 {[%emt 0:00:01]} Rxd5 {[%emt 0:00:04]} 43. Rxe2 {[%emt 0:00:00]} Bxb3 {[%emt 0:00:00]} 44. Nb7 {[%emt 0:00:07]} Kg7 {[%emt 0:00:08]} 45. Re7+ {[%emt 0:00:02]} Kh6 {[%emt 0:00:01]} 46. Re4 {[%emt 0:00:04]} Rh5+ {[%emt 0:00:05]} 47. Kg1 {[%emt 0:00:03]} Bd5 {[%emt 0:00:01]} 48. Re7 {[%emt 0:00:01]} Bc6 {[%emt 0:00:02]} 49. Nd6 {[%emt 0:00:03]} Bxa4 {[%emt 0:00:02]} 50. Ra7 {[%emt 0:00:01]} Rd5 {[%emt 0:00:02]} 51. Nf7+ {[%emt 0:00:01]} Kg7 {[%emt 0:00:01]} 52. Ne5+ {[%emt 0:00:01]} Kf6 {[%emt 0:00:02]} 53. Nc4 {[%emt 0:00:01]} Bb5 {[%emt 0:00:05]} 54. Nxa5 {[%emt 0:00:01]} h5 {[%emt 0:00:01]} 55. Kh2 {[%emt 0:00:03]} Rd2 {[%emt 0:00:01]} 56. Rb7 {[%emt 0:00:01]} Bf1 {[%emt 0:00:02]} 57. Kg1 {[%emt 0:00:05]} Bxg2 {[%emt 0:00:01]} 58. Rb4 {[%emt 0:00:02]} Bd5 {[%emt 0:00:02]} 59. Kf1 {[%emt 0:00:04]} Kf5 {[%emt 0:00:03]} 60. Rf4+ {[%emt 0:00:01]} Kg5 {[%emt 0:00:01]} 61. Nc4 {[%emt 0:00:01]} Ra2 {[%emt 0:00:03]} 62. Ne3 {[%emt 0:00:01]} Be6 {[%emt 0:00:02]} 63. Re4 {[%emt 0:00:03]} Bh3+ {[%emt 0:00:01]} 64. Ke1 {[%emt 0:00:02]} Kf6 {[%emt 0:00:03]} 65. Rf4+ {[%emt 0:00:01]} Kg7 {[%emt 0:00:02]} 66. Rf2 {[%emt 0:00:03]} Ra3 {[%emt 0:00:01]} 67. Kd2 {[%emt 0:00:01]} Bd7 {[%emt 0:00:01]} 68. Rf4 {[%emt 0:00:01]} Bb5 {[%emt 0:00:02]} 69. Rd4 {[%emt 0:00:02]} Ra2+ {[%emt 0:00:00]} 70. Kd1 {[%emt 0:00:04]} Rf2 {[%emt 0:00:01]} 71. Rd5 {[%emt 0:00:03]} Bc6 {[%emt 0:00:00]} 72. Rd6 {[%emt 0:00:02]} Bf3+ {[%emt 0:00:01]} 73. Kc1 {[%emt 0:00:00]} Re2 {[%emt 0:00:03]} 74. Rd3 {[%emt 0:00:01]} Be4 {[%emt 0:00:01]} 75. Rc3 {[%emt 0:00:02]} Rf2 {[%emt 0:00:01]} 76. Nd1 {[%emt 0:00:03]} Rg2 {[%emt 0:00:02]} 77. Re3 {[%emt 0:00:00]} Bf5 {[%emt 0:00:02]} 78. Nc3 {[%emt 0:00:01]} Kh6 {[%emt 0:00:04]} 79. Kd1 {[%emt 0:00:04]} Kg5 {[%emt 0:00:03]} 80. Ke1 {[%emt 0:00:02]} Kg4 {[%emt 0:00:00]} 81. Ne2 {[%emt 0:00:00]} Rh2 {[%emt 0:00:04]} 82. Kf1 {[%emt 0:00:02]} Rh1+ {[%emt 0:00:01]} 83. Kf2 {[%emt 0:00:00]} Ra1 {[%emt 0:00:00]} 84. Ng1 {[%emt 0:00:03]} g5 {[%emt 0:00:07]} 85. Rc3 {[%emt 0:00:02]} Be4 {[%emt 0:00:03]} 86. Rc4 {[%emt 0:00:02]} Kf5 {[%emt 0:00:03]} 87. Rc5+ {[%emt 0:00:00]} Kf6 {[%emt 0:00:00]} 88. Ne2 {[%emt 0:00:03]} Ra3 {[%emt 0:00:02]} 89. Nc3 {[%emt 0:00:01]} Bf5 {[%emt 0:00:05]} 90. Nd5+ {[%emt 0:00:02]} Ke6 {[%emt 0:00:03]} 91. Nc7+ {[%emt 0:00:01]} Kf6 {[%emt 0:00:03]} 92. Nd5+ {[%emt 0:00:01]} Kf7 {[%emt 0:00:01]} 93. Ne3 {[%emt 0:00:02]} Ra2+ {[%emt 0:00:01]} 94. Kg1 {[%emt 0:00:02]} Be4 {[%emt 0:00:01]} 95. Rxg5 {[%emt 0:00:01]} Re2 {[%emt 0:00:02]} 96. Nc4 {[%emt 0:00:02]} Rg2+ {[%emt 0:00:03]} 97. Kf1 {[%emt 0:00:01]} Kf6 {[%emt 0:00:03]} 98. Rxh5 {[%emt 0:00:02]} Rxg3 {[%emt 0:00:01]} 99. Kf2 {[%emt 0:00:03]} Rf3+ {[%emt 0:00:01]} 100. Ke1 {[%emt 0:00:01]} Rf5 {[%emt 0:00:01]} 101. Rxf5+ {[%emt 0:00:01]} Bxf5 {[%emt 0:00:00]} 1/2-1/2